fUST/lending_fUST_20250623
["ID","MTS","AMOUNT","RATE_DAILY","PERIOD"]
[367160340,1750679449886,-681.5,0.00022191,2]
[367160342,1750679449896,-4203.0,0.00022191,2]
[367160344,1750679449906,-460.0,0.00022191,2]
[367160346,1750679449916,-477.72,0.00022191,2]
[367160348,1750679449926,-3023.27,0.00022191,2]
[367160350,1750679449936,-1180.56,0.00022191,2]
[367160352,1750679449948,-6139.6,0.00022191,2]
[367160354,1750679449958,-460.0,0.00022191,2]
[367160355,1750679449968,-460.0,0.00022191,2]
[367160356,1750679449980,-29.34953478,0.00022191,2]
[367160357,1750679450286,-515.38046522,0.00022191,2]
[367160358,1750679450296,-324.35611528,0.00022191,2]
[367160359,1750679450306,-1717.01,0.00022191,2]
[367160360,1750679450316,-2117.65,0.00022191,2]
[367160361,1750679450326,-1554.95,0.00022191,2]
[367160362,1750679450337,-926.21,0.00022191,2]
[367160363,1750679450346,-460.0,0.00022191,2]
[367160364,1750679450356,-460.0,0.00022191,2]
[367160365,1750679450367,-1272.06,0.00022191,2]
[367160366,1750679450378,-1906.76,0.00022191,2]
[367160367,1750679450388,-460.0,0.00022191,2]
[367160368,1750679450398,-886.36,0.00022191,2]
[367160369,1750679450408,-460.0,0.00022191,2]
[367160370,1750679450418,-665.97,0.00022191,2]
[367160371,1750679450428,-460.0,0.00022191,2]
[367160372,1750679450438,-460.0,0.00022191,2]
[367160373,1750679450448,-15240.95,0.00022191,2]
[367160374,1750679450458,-460.0,0.00022191,2]
[367160375,1750679450468,-1085.02,0.00022191,2]
[367160376,1750679450478,-669.59,0.00022191,2]
[367160377,1750679450488,-788.7,0.00022191,2]
[367160378,1750679450497,-468.96601843,0.00022191,2]
[367160379,1750679450507,-1199.8,0.00022191,2]
[367160380,1750679450516,-798.6,0.00022191,2]
[367160381,1750679450526,-2393.58,0.00022191,2]
[367160382,1750679450535,-2642.21,0.00022191,2]
[367160383,1750679450545,-1090.00088366,0.00022191,2]
[367160384,1750679450572,-1688.35863592,0.00022191,2]
[367160385,1750679450648,-772.0924999,0.00021199,2]
[367160386,1750679450658,-1944.75048042,0.00022191,2]
[367160387,1750679450668,-460.0,0.00022191,2]
[367160388,1750679450678,-460.0,0.00022191,2]
[367160389,1750679450689,-3799.18,0.00022191,2]
[367160390,1750679450699,-460.0,0.00022191,2]
[367160391,1750679450709,-151.0,0.00022191,7]
[367160392,1750679450719,-1206.9,0.00022191,2]
[367160393,1750679450729,-151.0,0.00022191,7]
[367160394,1750679450740,-151.0,0.00022191,7]
[367160395,1750679450751,-151.0,0.00022191,7]
[367160396,1750679450760,-489.69,0.00022191,2]
[367160397,1750679450770,-585.33,0.00022191,2]
[367160398,1750679450783,-494.45,0.00022191,2]
[367160399,1750679450793,-460.0,0.00022191,2]
[367160400,1750679450803,-460.0,0.00022191,2]
[367160401,1750679450813,-1491.15,0.00022191,2]
[367160402,1750679450823,-738.84,0.00022191,2]
[367160403,1750679450832,-461.03,0.00022191,2]
[367160404,1750679450842,-179.6518917,0.00022191,2]
[367160405,1750679450852,-460.0,0.00022191,2]
[367160406,1750679450862,-3841.01,0.00022191,2]
[367160407,1750679450872,-598.43,0.00022191,2]
[367160408,1750679450882,-460.0,0.00022191,2]
[367160409,1750679450892,-500.0,0.00022191,2]
[367160410,1750679450901,-572.67,0.00022191,2]
[367160411,1750679450911,-1498.62,0.00022191,2]
[367160412,1750679450921,-460.0,0.00022191,2]
[367160413,1750679450931,-1277.24,0.00022191,2]
[367160414,1750679450941,-2339.52,0.00022191,2]
[367160415,1750679450950,-528.94,0.00022191,2]
[367160416,1750679450960,-460.0,0.00022191,2]
[367160417,1750679450970,-936.05,0.00022191,2]
[367160418,1750679450980,-1779.86,0.00022191,2]
[367160419,1750679450991,-1234.2,0.00022191,2]
[367160420,1750679451001,-460.0,0.00022191,2]
[367160421,1750679451011,-597.75,0.00022191,2]
[367160422,1750679451021,-460.0,0.00022191,2]
[367160423,1750679451031,-464.16,0.00022191,2]
[367160424,1750679451040,-460.0,0.00022191,2]
[367160425,1750679451050,-460.0,0.00022191,2]
[367160426,1750679451061,-460.0,0.00022191,2]
[367160427,1750679451071,-460.0,0.00022191,2]
[367160428,1750679451080,-5222.06,0.00022191,2]
[367160429,1750679451091,-460.0,0.00022191,2]
[367160430,1750679451101,-5417.65,0.00022191,2]
[367160431,1750679451112,-1700.19,0.00022191,2]
[367160432,1750679451122,-708.05,0.00022191,2]
[367160433,1750679451131,-603.78,0.00022191,2]
[367160434,1750679451141,-460.0,0.00022191,2]
[367160435,1750679451153,-917.03,0.00022191,2]
[367160436,1750679451163,-2471.71,0.00022191,2]
[367160437,1750679451173,-460.0,0.00022191,2]
[367160438,1750679451183,-7020.42,0.00022191,2]
[367160439,1750679451194,-5756.46,0.00022191,2]
[367160440,1750679451203,-460.0,0.00022191,2]
[367160441,1750679451214,-613.98,0.00022191,2]
[367160442,1750679451225,-460.0,0.00022191,2]
[367160443,1750679451423,-812.66,0.00022191,2]
[367160444,1750679451433,-460.0,0.00022191,2]
[367160445,1750679451443,-460.0,0.00022191,2]
[367160446,1750679451453,-460.0,0.00022191,2]
[367160447,1750679451462,-460.0,0.00022191,2]
[367160448,1750679451472,-3659.38,0.00022191,2]
[367160449,1750679451482,-658.32,0.00022191,2]
[367160450,1750679451492,-460.0,0.00022191,2]
[367160451,1750679451502,-1647.54,0.00022191,2]
[367160452,1750679451511,-784.35,0.00022191,2]
[367160453,1750679451521,-460.0,0.00022191,2]
[367160454,1750679451531,-513.58,0.00022191,2]
[367160455,1750679451542,-534.48,0.00022191,2]
[367160456,1750679451552,-460.0,0.00022191,2]
[367160457,1750679451562,-777.59,0.00022191,2]
[367160458,1750679451571,-460.0,0.00022191,2]
[367160459,1750679451582,-161.74308903,0.00022191,2]
[367160460,1750679451591,-460.0,0.00022191,2]
[367160461,1750679451601,-1616.03,0.00022191,2]
[367160462,1750679451611,-983.79,0.00022191,2]
[367160463,1750679451620,-926.18,0.00022191,2]
[367160464,1750679451630,-1477.14,0.00022191,2]
[367160465,1750679451640,-637.53,0.00022191,2]
[367160466,1750679451649,-460.0,0.00022191,2]
[367160467,1750679451659,-5597.06,0.00022191,2]
[367160468,1750679451669,-460.0,0.00022191,2]
[367160469,1750679451678,-295.19795197,0.00022191,2]
[367160470,1750679451688,-460.0,0.00022191,2]
[367160471,1750679451697,-892.18,0.00022191,2]
[367160472,1750679451707,-646.98,0.00022191,2]
[367160473,1750679451716,-460.0,0.00022191,2]
[367160474,1750679451725,-460.0,0.00022191,2]
[367160475,1750679451735,-650.6,0.00022191,2]
[367160476,1750679451744,-481.63,0.00022191,2]
[367160477,1750679451754,-460.0,0.00022191,2]
[367160478,1750679451763,-460.0,0.00022191,2]
[367160479,1750679451774,-1092.76,0.00022191,2]
[367160480,1750679451784,-151.0,0.000222,6]
[367160481,1750679451793,-151.0,0.000222,5]
[367160482,1750679451803,-220.0,0.00022228,2]
[367160483,1750679451812,-119129.94558337,0.0002224,2]
[367160484,1750679451821,-151.0,0.0002224,7]
[367160485,1750679451831,-151.0,0.0002224,7]
[367160486,1750679451840,-291.56096,0.0002224,7]
[367160487,1750679451850,-350.0,0.0002225,2]
[367160488,1750679451859,-1216.9,0.0002227,6]
[367160489,1750679451869,-150.0,0.00022295,2]
[367160490,1750679451878,-150.0,0.00022295,2]
[367160491,1750679451888,-150.0,0.00022295,2]
[367160492,1750679451896,-175.918,0.00022295,2]
[367160493,1750679451905,-448.382648,0.00022301,2]
[367160494,1750679451915,-467.6,0.00022347,5]
[367160495,1750679451924,-1216.9,0.0002237,7]
[367160496,1750679451933,-500.000001,0.0002238,2]
[367160497,1750679451942,-151.0,0.000224,5]
[367160498,1750679451952,-500.0,0.00022438,2]
[367160499,1750679451961,-151.0,0.00022438,2]
[367160500,1750679451970,-151.0,0.00022438,2]
[367160501,1750679451980,-151.0,0.00022438,2]
[367160502,1750679451989,-151.0,0.00022438,2]
[367160503,1750679451998,-500.0,0.00022438,2]
[367160504,1750679452007,-153.21834357,0.00022438,2]
[367160505,1750679452016,-151.0,0.00022438,2]
[367160506,1750679452026,-151.0,0.00022438,2]
[367160507,1750679452034,-198.0,0.00022438,2]
[367160508,1750679452044,-151.0,0.00022438,2]
[367160509,1750679452053,-151.31756435,0.00022438,2]
[367160510,1750679452063,-151.0,0.00022438,2]
[367160511,1750679452072,-200.0,0.00022464,2]
[367160512,1750679452081,-658.01,0.00022465,2]
[367160513,1750679452091,-460.0,0.00022465,2]
[367160514,1750679452100,-623.23,0.00022465,2]
[367160515,1750679452110,-460.0,0.00022465,2]
[367160516,1750679452119,-587.63,0.00022465,2]
[367160517,1750679452129,-563.15,0.00022465,2]
[367160518,1750679452138,-460.0,0.00022465,2]
[367160519,1750679452147,-460.0,0.00022465,2]
[367160520,1750679452156,-169.28817382,0.00022465,2]
[367160521,1750679452165,-460.0,0.00022465,2]
[367160522,1750679452175,-244.49729915,0.00022465,2]
[367160523,1750679452184,-673.82,0.00022465,2]
[367160524,1750679452194,-460.0,0.00022465,2]
[367160525,1750679452203,-460.0,0.00022465,2]
[367160526,1750679452212,-460.0,0.00022465,2]
[367160527,1750679452221,-460.0,0.00022465,2]
[367160528,1750679452231,-460.0,0.00022465,2]
[367160529,1750679452240,-460.0,0.00022465,2]
[367160530,1750679452249,-460.0,0.00022465,2]
[367160531,1750679452258,-460.0,0.00022465,2]
[367160532,1750679452268,-460.0,0.00022465,2]
[367160533,1750679452277,-714.15,0.00022465,2]
[367160534,1750679452286,-460.0,0.00022465,2]
[367160535,1750679452296,-460.0,0.00022465,2]
[367160536,1750679452305,-460.0,0.00022465,2]
[367160537,1750679452314,-460.0,0.00022465,2]
[367160538,1750679452323,-460.0,0.00022465,2]
[367160539,1750679452333,-460.0,0.00022465,2]
[367160540,1750679452342,-838.33,0.00022465,2]
[367160541,1750679452351,-460.0,0.00022465,2]
[367160542,1750679452360,-497.84,0.00022465,2]
[367160543,1750679452369,-460.0,0.00022465,2]
[367160544,1750679452378,-460.0,0.00022465,2]
[367160545,1750679452388,-702.29,0.00022465,2]
[367160546,1750679452397,-722.89,0.00022465,2]
[367160547,1750679452407,-460.0,0.00022465,2]
[367160548,1750679452416,-460.0,0.00022465,2]
[367160549,1750679452425,-460.0,0.00022465,2]
[367160550,1750679452434,-460.0,0.00022465,2]
[367160551,1750679452443,-460.0,0.00022465,2]
[367160552,1750679452452,-460.0,0.00022465,2]
[367160553,1750679452462,-460.0,0.00022465,2]
[367160554,1750679452471,-460.0,0.00022465,2]
[367160555,1750679452481,-460.0,0.00022465,2]
[367160556,1750679452490,-1151.1,0.00022465,2]
[367160557,1750679452500,-460.0,0.00022465,2]
[367160558,1750679452510,-460.0,0.00022465,2]
[367160559,1750679452520,-460.0,0.00022465,2]
[367160560,1750679452531,-485.62,0.00022465,2]
[367160561,1750679452543,-460.0,0.00022465,2]
[367160562,1750679452553,-223.77273256,0.00022465,2]
[367160563,1750679452563,-460.0,0.00022465,2]
[367160564,1750679452572,-261.49447496,0.00022465,2]
[367160565,1750679452581,-460.0,0.00022465,2]
[367160566,1750679452590,-460.0,0.00022465,2]
[367160567,1750679452599,-460.0,0.00022465,2]
[367160568,1750679452609,-460.0,0.00022465,2]
[367160569,1750679452619,-460.0,0.00022465,2]
[367160570,1750679452628,-460.0,0.00022465,2]
[367160571,1750679452638,-460.0,0.00022465,2]
[367160572,1750679452647,-536.68,0.00022465,2]
[367160573,1750679452657,-460.0,0.00022465,2]
[367160574,1750679452666,-460.0,0.00022465,2]
[367160575,1750679452675,-483.9,0.00022465,2]
[367160576,1750679452684,-280.78734991,0.00022465,2]
[367160577,1750679452693,-460.0,0.00022465,2]
[367160578,1750679452702,-502.94,0.00022465,2]
[367160579,1750679452711,-543.64,0.00022465,2]
[367160580,1750679452720,-460.0,0.00022465,2]
[367160581,1750679452729,-460.0,0.00022465,2]
[367160582,1750679452739,-460.0,0.00022465,2]
[367160583,1750679452752,-1148.36,0.00022465,2]
[367160584,1750679452761,-460.0,0.00022465,2]
[367160585,1750679452772,-460.0,0.00022465,2]
[367160586,1750679452783,-460.0,0.00022465,2]
[367160587,1750679452792,-1253.57,0.00022465,2]
[367160588,1750679452801,-460.0,0.00022465,2]
[367160589,1750679452811,-460.0,0.00022465,2]
[367160590,1750679452821,-400.08873649,0.00022465,2]
[367160591,1750679452831,-554.84,0.00022465,2]
[367160592,1750679452842,-802.76,0.00022465,2]
[367160593,1750679452855,-505.45,0.00022465,2]
[367160594,1750679452866,-592.31,0.00022465,2]
[367160595,1750679452875,-886.21,0.00022465,2]
[367160596,1750679452885,-460.0,0.00022465,2]
[367160597,1750679452894,-431.53933683,0.00022465,2]
[367160598,1750679452904,-460.0,0.00022465,2]
[367160599,1750679452914,-460.0,0.00022465,2]
[367160600,1750679452923,-723.87,0.00022465,2]
[367160601,1750679452932,-2956.7,0.00022465,2]
[367160602,1750679452941,-460.0,0.00022465,2]
[367160603,1750679452950,-571.57,0.00022465,2]
[367160604,1750679452960,-460.0,0.00022465,2]
[367160605,1750679452969,-1075.14,0.00022465,2]
[367160606,1750679452978,-1134.06,0.00022465,2]
[367160607,1750679452987,-460.0,0.00022465,2]
[367160608,1750679452995,-947.97,0.00022465,2]
[367160609,1750679453004,-460.0,0.00022465,2]
[367160610,1750679453014,-460.0,0.00022465,2]
[367160611,1750679453022,-2356.76,0.00022465,2]
[367160612,1750679453032,-460.0,0.00022465,2]
[367160613,1750679453041,-565.81,0.00022465,2]
[367160614,1750679453051,-520.03,0.00022465,2]
[367160615,1750679453064,-1244.28,0.00022465,2]
[367160616,1750679453073,-715.67,0.00022465,2]
[367160617,1750679453083,-460.0,0.00022465,2]
[367160618,1750679453093,-897.69,0.00022465,2]
[367160619,1750679453103,-460.0,0.00022465,2]
[367160620,1750679453116,-460.0,0.00022465,2]
[367160621,1750679453126,-460.0,0.00022465,2]
[367160622,1750679453136,-460.0,0.00022465,2]
[367160623,1750679453145,-460.0,0.00022465,2]
[367160624,1750679453155,-460.0,0.00022465,2]
[367160625,1750679453164,-460.0,0.00022465,2]
[367160626,1750679453174,-460.0,0.00022465,2]
[367160627,1750679453183,-460.0,0.00022465,2]
[367160628,1750679453193,-746.0,0.00022465,2]
[367160629,1750679453202,-460.0,0.00022465,2]
[367160630,1750679453212,-460.0,0.00022465,2]
[367160631,1750679453222,-460.0,0.00022465,2]
[367160632,1750679453231,-460.0,0.00022465,2]
[367160633,1750679453242,-460.0,0.00022465,2]
[367160634,1750679453251,-601.52,0.00022465,2]
[367160635,1750679453260,-460.0,0.00022465,2]
[367160636,1750679453270,-460.0,0.00022465,2]
[367160637,1750679453280,-460.0,0.00022465,2]
[367160638,1750679453290,-460.0,0.00022465,2]
[367160639,1750679453299,-460.0,0.00022465,2]
[367160640,1750679453308,-697.34,0.00022465,2]
[367160641,1750679453318,-460.0,0.00022465,2]
[367160642,1750679453327,-460.0,0.00022465,2]
[367160643,1750679453337,-460.0,0.00022465,2]
[367160644,1750679453346,-460.0,0.00022465,2]
[367160645,1750679453356,-460.0,0.00022465,2]
[367160646,1750679453365,-486.96733093,0.00022465,2]
[367160647,1750679453374,-460.0,0.00022465,2]
[367160648,1750679453383,-670.03,0.00022465,2]
[367160649,1750679453393,-601.62,0.00022465,2]
[367160650,1750679453402,-460.0,0.00022465,2]
[367160651,1750679453411,-669.54,0.00022465,2]
[367160652,1750679453421,-551.01,0.00022465,2]
[367160653,1750679453430,-980.34,0.00022465,2]
[367160654,1750679453439,-460.0,0.00022465,2]
[367160655,1750679453449,-460.0,0.00022465,2]
[367160656,1750679453458,-460.0,0.00022465,2]
[367160657,1750679453468,-559.61120758,0.00022465,2]
[367160658,1750679453477,-1354.79,0.00022465,2]
[367160659,1750679453487,-802.81,0.00022465,2]
[367160660,1750679453496,-771.47,0.00022465,2]
[367160661,1750679453506,-460.0,0.00022465,2]
[367160662,1750679453515,-935.69,0.00022465,2]
[367160663,1750679453524,-453.17029561,0.00022465,2]
[367160664,1750679453533,-460.0,0.00022465,2]
[367160665,1750679453544,-626.17,0.00022465,2]
[367160666,1750679453553,-460.0,0.00022465,2]
[367160667,1750679453563,-460.0,0.00022465,2]
[367160668,1750679453573,-588.75,0.00022465,2]
[367160669,1750679453582,-460.0,0.00022465,2]
[367160670,1750679453591,-932.67,0.00022465,2]
[367160671,1750679453601,-460.0,0.00022465,2]
[367160672,1750679453611,-460.0,0.00022465,2]
[367160673,1750679453621,-460.0,0.00022465,2]
[367160674,1750679453630,-1674.24,0.00022465,2]
[367160675,1750679453639,-782.86,0.00022465,2]
[367160676,1750679453649,-460.0,0.00022465,2]
[367160677,1750679453658,-545.69,0.00022465,2]
[367160678,1750679453667,-460.0,0.00022465,2]
[367160679,1750679453676,-832.21,0.00022465,2]
[367160680,1750679453686,-460.0,0.00022465,2]
[367160681,1750679453695,-460.0,0.00022465,2]
[367160682,1750679453705,-460.0,0.00022465,2]
[367160683,1750679453714,-460.0,0.00022465,2]
[367160684,1750679453724,-460.0,0.00022465,2]
[367160685,1750679453734,-460.0,0.00022465,2]
[367160686,1750679453743,-460.0,0.00022465,2]
[367160687,1750679453753,-460.0,0.00022465,2]
[367160688,1750679453763,-460.0,0.00022465,2]
[367160689,1750679453777,-460.0,0.00022465,2]
[367160690,1750679453794,-460.0,0.00022465,2]
[367160691,1750679453804,-460.0,0.00022465,2]
[367160692,1750679453815,-473.03,0.00022465,2]
[367160693,1750679453824,-465.58,0.00022465,2]
[367160694,1750679453834,-460.0,0.00022465,2]
[367160695,1750679453843,-460.0,0.00022465,2]
[367160696,1750679453852,-998.07,0.00022465,2]
[367160697,1750679453862,-604.46921883,0.00022465,2]
[367160698,1750679453873,-460.0,0.00022465,2]
[367160699,1750679453882,-460.0,0.00022465,2]
[367160700,1750679453892,-872.33,0.00022465,2]
[367160701,1750679453901,-460.0,0.00022465,2]
[367160702,1750679453911,-4989.39,0.00022465,2]
[367160703,1750679453921,-563.78,0.00022465,2]
[367160704,1750679453930,-460.0,0.00022465,2]
[367160705,1750679453939,-1727.9,0.00022465,2]
[367160706,1750679453949,-793.13,0.00022465,2]
[367160707,1750679453958,-460.0,0.00022465,2]
[367160708,1750679453967,-460.0,0.00022465,2]
[367160709,1750679453977,-460.0,0.00022465,2]
[367160710,1750679453988,-549.17,0.00022465,2]
[367160711,1750679453998,-619.84,0.00022465,2]
[367160712,1750679454007,-1232.55,0.00022465,2]
[367160713,1750679454016,-460.0,0.00022465,2]
[367160714,1750679454026,-598.17,0.00022465,2]
[367160715,1750679454035,-460.0,0.00022465,2]
[367160716,1750679454044,-633.72,0.00022465,2]
[367160717,1750679454054,-474.55,0.00022465,2]
[367160718,1750679454065,-460.0,0.00022465,2]
[367160719,1750679454074,-460.0,0.00022465,2]
[367160720,1750679454083,-460.0,0.00022465,2]
[367160721,1750679454093,-460.0,0.00022465,2]
[367160722,1750679454103,-647.0,0.00022465,2]
[367160723,1750679454112,-630.5,0.00022465,2]
[367160724,1750679454121,-936.71,0.00022465,2]
[367160725,1750679454131,-460.0,0.00022465,2]
[367160726,1750679454141,-460.0,0.00022465,2]
[367160727,1750679454150,-861.13,0.00022465,2]
[367160728,1750679454160,-460.0,0.00022465,2]
[367160729,1750679454169,-816.31,0.00022465,2]
[367160730,1750679454180,-460.0,0.00022465,2]
[367160731,1750679454189,-460.0,0.00022465,2]
[367160732,1750679454198,-460.0,0.00022465,2]
[367160733,1750679454208,-590.95,0.00022465,2]
[367160734,1750679454218,-460.0,0.00022465,2]
[367160735,1750679454227,-500.0,0.00022465,2]
[367160736,1750679454236,-760.47,0.00022465,2]
[367160737,1750679454245,-1873.31,0.00022465,2]
[367160738,1750679454254,-460.0,0.00022465,2]
[367160739,1750679454264,-460.0,0.00022465,2]
[367160740,1750679454274,-6889.06,0.00022465,2]
[367160741,1750679454283,-1333.12,0.00022465,2]
[367160742,1750679454293,-460.0,0.00022465,2]
[367160743,1750679454303,-452.06652529,0.00022465,2]
[367160744,1750679454313,-460.0,0.00022465,2]
[367160745,1750679454322,-157.28162691,0.00022465,2]
[367160746,1750679454332,-2503.55,0.00022465,2]
[367160747,1750679454341,-460.0,0.00022465,2]
[367160748,1750679454351,-460.0,0.00022465,2]
[367160749,1750679454361,-1060.68,0.00022465,2]
[367160750,1750679454371,-687.85,0.00022465,2]
[367160751,1750679454380,-460.0,0.00022465,2]
[367160752,1750679454390,-827.12,0.00022465,2]
[367160753,1750679454399,-681.5,0.00022465,2]
[367160754,1750679454409,-4203.0,0.00022465,2]
[367160755,1750679454419,-477.72,0.00022465,2]
[367160756,1750679454429,-3023.27,0.00022465,2]
[367160757,1750679454439,-1180.56,0.00022465,2]
[367160758,1750679454449,-6139.6,0.00022465,2]
[367160759,1750679454458,-460.0,0.00022465,2]
[367160760,1750679454468,-460.0,0.00022465,2]
[367160761,1750679454477,-544.73,0.00022465,2]
[367160762,1750679454486,-1717.01,0.00022465,2]
[367160763,1750679454495,-2117.65,0.00022465,2]
[367160764,1750679454505,-1554.95,0.00022465,2]
[367160765,1750679454514,-926.21,0.00022465,2]
[367160766,1750679454525,-460.0,0.00022465,2]
[367160767,1750679454535,-460.0,0.00022465,2]
[367160768,1750679454544,-1272.06,0.00022465,2]
[367160769,1750679454554,-1906.76,0.00022465,2]
[367160770,1750679454563,-460.0,0.00022465,2]
[367160771,1750679454573,-886.36,0.00022465,2]
[367160772,1750679454583,-460.0,0.00022465,2]
[367160773,1750679454592,-665.97,0.00022465,2]
[367160774,1750679454602,-460.0,0.00022465,2]
[367160775,1750679454611,-460.0,0.00022465,2]
[367160776,1750679454621,-15240.95,0.00022465,2]
[367160777,1750679454630,-429.93813131,0.00022465,2]
[367160778,1750679454640,-1085.02,0.00022465,2]
[367160779,1750679454649,-669.59,0.00022465,2]
[367160780,1750679454658,-788.7,0.00022465,2]
[367160781,1750679454667,-1199.8,0.00022465,2]
[367160782,1750679454676,-798.6,0.00022465,2]
[367160783,1750679454685,-2393.58,0.00022465,2]
[367160784,1750679454695,-2642.21,0.00022465,2]
[367160785,1750679454704,-4723.11,0.00022465,2]
[367160786,1750679454714,-221.32507721,0.00022465,2]
[367160787,1750679454723,-460.0,0.00022465,2]
[367160788,1750679454732,-3799.18,0.00022465,2]
[367160789,1750679454741,-460.0,0.00022465,2]
[367160790,1750679454750,-1206.9,0.00022465,2]
[367160791,1750679454759,-489.69,0.00022465,2]
[367160792,1750679454768,-585.33,0.00022465,2]
[367160793,1750679454782,-494.45,0.00022465,2]
[367160794,1750679454791,-460.0,0.00022465,2]
[367160795,1750679454801,-460.0,0.00022465,2]
[367160796,1750679454811,-1491.15,0.00022465,2]
[367160797,1750679454820,-738.84,0.00022465,2]
[367160798,1750679454830,-461.03,0.00022465,2]
[367160799,1750679454839,-460.0,0.00022465,2]
[367160800,1750679454850,-3841.01,0.00022465,2]
[367160801,1750679454859,-598.43,0.00022465,2]
[367160802,1750679454869,-460.0,0.00022465,2]
[367160803,1750679454879,-500.0,0.00022465,2]
[367160804,1750679454889,-1498.62,0.00022465,2]
[367160805,1750679454899,-572.67,0.00022465,2]
[367160806,1750679454909,-460.0,0.00022465,2]
[367160807,1750679454919,-1277.24,0.00022465,2]
[367160808,1750679454929,-2339.52,0.00022465,2]
[367160809,1750679454940,-528.94,0.00022465,2]
[367160810,1750679454949,-936.05,0.00022465,2]
[367160811,1750679454958,-1779.86,0.00022465,2]
[367160812,1750679454967,-1234.2,0.00022465,2]
[367160813,1750679454976,-460.0,0.00022465,2]
[367160814,1750679454986,-597.75,0.00022465,2]
[367160815,1750679454995,-460.0,0.00022465,2]
[367160816,1750679455005,-460.0,0.00022465,2]
[367160817,1750679455014,-460.0,0.00022465,2]
[367160818,1750679455023,-464.16,0.00022465,2]
[367160819,1750679455032,-460.0,0.00022465,2]
[367160820,1750679455041,-460.0,0.00022465,2]
[367160821,1750679455050,-5222.06,0.00022465,2]
[367160822,1750679455059,-460.0,0.00022465,2]
[367160823,1750679455069,-5417.65,0.00022465,2]
[367160824,1750679455078,-1700.19,0.00022465,2]
[367160825,1750679455087,-708.05,0.00022465,2]
[367160826,1750679455096,-603.78,0.00022465,2]
[367160827,1750679455106,-460.0,0.00022465,2]
[367160828,1750679455115,-500.0,0.00022465,2]
[367160829,1750679455125,-917.03,0.00022465,2]
[367160830,1750679455134,-2471.71,0.00022465,2]
[367160831,1750679455144,-7020.42,0.00022465,2]
[367160832,1750679455153,-460.0,0.00022465,2]
[367160833,1750679455162,-5756.46,0.00022465,2]
[367160834,1750679455172,-613.98,0.00022465,2]
[367160835,1750679455181,-460.0,0.00022465,2]
[367160836,1750679455191,-812.66,0.00022465,2]
[367160837,1750679455200,-460.0,0.00022465,2]
[367160838,1750679455209,-554.51614407,0.00022465,2]
[367160839,1750679455220,-460.0,0.00022465,2]
[367160840,1750679455229,-3659.38,0.00022465,2]
[367160841,1750679455239,-460.0,0.00022465,2]
[367160842,1750679455249,-658.32,0.00022465,2]
[367160843,1750679455259,-460.0,0.00022465,2]
[367160844,1750679455268,-1647.54,0.00022465,2]
[367160845,1750679455278,-784.35,0.00022465,2]
[367160846,1750679455287,-460.0,0.00022465,2]